bitfinex/quotes_BTCUSD_20250616
["timestamp","ask_amount","ask_price","bid_price","bid_amount"]
[1750115415895,0.49741581,107820.0,107790.0,0.41719987]
[1750115416117,0.42761025,107800.0,107790.0,0.41719987]
[1750115416341,1.05038076,107800.0,107790.0,0.009]
[1750115417005,1.05038076,107800.0,107790.0,0.01827729]
[1750115417229,1.0411045,107800.0,107790.0,0.01827729]
[1750115417511,0.86485184,107800.0,107790.0,0.23165436]
[1750115417723,1.08122756,107800.0,107790.0,0.2173775]
[1750115417943,1.10076841,107800.0,107790.0,0.2183775]
[1750115418163,1.10076841,107800.0,107790.0,0.2143775]
[1750115418428,1.08221597,107800.0,107790.0,0.001]
[1750115418948,0.345,107800.0,107790.0,0.21537681]
[1750115419164,0.75405764,107800.0,107790.0,0.21537681]
[1750115419391,0.94466825,107800.0,107790.0,0.21537698]
[1750115419631,0.94466825,107800.0,107790.0,0.20510021]
[1750115419851,0.93839199,107800.0,107790.0,0.21437707]
[1750115420060,0.92911599,107800.0,107790.0,0.22365376]
[1750115420272,0.93839191,107800.0,107790.0,0.22365376]
[1750115420488,0.75705764,107800.0,107790.0,0.22365376]
[1750115420914,0.67699988,107800.0,107790.0,0.22365376]
[1750115421130,0.66772414,107800.0,107790.0,0.22365376]
[1750115421342,0.67699988,107800.0,107790.0,0.22365376]
[1750115421555,0.66772414,107800.0,107790.0,0.22365376]
[1750115421740,1.01527628,107800.0,107790.0,0.22365385]
[1750115421977,1.02455263,107800.0,107790.0,0.21437716]
[1750115422203,1.03382906,107800.0,107790.0,0.22365394]
[1750115422414,1.01527619,107800.0,107790.0,0.23293063]
[1750115422649,1.02455245,107800.0,107790.0,0.23293063]
[1750115423076,0.37582791,107800.0,107790.0,0.23293063]
[1750115423289,0.89035723,107800.0,107790.0,0.20510021]
[1750115423533,1.02455245,107800.0,107790.0,0.22365368]
[1750115423772,0.99672402,107800.0,107790.0,0.22365368]
[1750115423993,1.00599994,107800.0,107790.0,0.22365368]
[1750115424210,1.01527603,107800.0,107790.0,0.22365368]
[1750115424639,0.70482815,107800.0,107790.0,0.22365368]
[1750115425284,1.46811356,107800.0,107790.0,0.001]
[1750115425501,1.45883764,107800.0,107790.0,0.01027721]
[1750115425713,1.16788358,107800.0,107790.0,0.21437681]
[1750115425927,1.35341233,107800.0,107790.0,0.20510012]
[1750115426148,1.35341233,107800.0,107790.0,0.20510029]
[1750115426397,1.35341233,107800.0,107790.0,0.001]
[1750115426604,1.35341233,107800.0,107790.0,0.01027729]
[1750115426811,1.44956155,107800.0,107790.0,0.01027729]
[1750115427231,1.44956155,107800.0,107790.0,0.20510046]
[1750115427439,1.47743655,107800.0,107790.0,0.20510046]
[1750115427675,1.46816029,107800.0,107790.0,0.01027729]
[1750115428322,1.45888386,107800.0,107790.0,0.001]
[1750115429028,1.18358602,107770.0,107760.0,0.002]
[1750115429251,0.66038722,107770.0,107760.0,0.002]
[1750115429471,1.43611811,107770.0,107760.0,0.002]
[1750115430200,0.87318015,107750.0,107740.0,0.38743465]
[1750115430432,0.87318015,107750.0,107740.0,0.20666792]
[1750115430653,0.87318015,107750.0,107740.0,0.21594917]
[1750115430879,0.67828466,107750.0,107740.0,0.21594917]
[1750115431117,0.66900419,107750.0,107740.0,0.40651017]
[1750115431351,0.01855846,107760.0,107750.0,0.21345601]
[1750115431579,0.65972414,107760.0,107750.0,0.21345601]
[1750115431798,0.001,107770.0,107760.0,0.21343621]
[1750115432020,0.65972414,107770.0,107760.0,0.39471621]
[1750115432453,0.66900238,107770.0,107760.0,0.39471621]
[1750115432675,0.66900238,107770.0,107760.0,0.41199308]
[1750115432889,0.77772546,107770.0,107760.0,0.41199308]
[1750115433111,0.77772538,107770.0,107760.0,0.41199308]
[1750115433328,0.76844688,107770.0,107760.0,0.41199308]
[1750115433777,0.34,107770.0,107760.0,0.23071308]
[1750115434038,0.41189031,107790.0,107780.0,0.19484073]
[1750115434254,0.77044412,107790.0,107780.0,0.41195348]
[1750115434477,0.77972133,107790.0,107780.0,0.41195348]
[1750115434690,0.77972107,107790.0,107780.0,0.40267593]
[1750115434937,0.95599034,107790.0,107780.0,0.39339812]
[1750115435152,0.95599034,107790.0,107780.0,0.39338947]
[1750115435376,1.17103951,107790.0,107780.0,0.01726822]
[1750115435597,1.19603951,107790.0,107780.0,0.01726822]
[1750115435820,0.345,107790.0,107780.0,0.22238702]
[1750115436047,0.77344447,107790.0,107780.0,0.23166483]
[1750115436292,0.79199862,107790.0,107780.0,0.23166483]
[1750115436543,0.79399862,107790.0,107780.0,0.22238728]
[1750115436763,0.79399862,107790.0,107780.0,0.24094264]
[1750115436982,0.77544412,107790.0,107780.0,0.24094264]
[1750115437208,0.78472116,107790.0,107780.0,0.25022019]
[1750115437419,0.80327557,107790.0,107780.0,0.25022019]
[1750115437877,0.79399871,107790.0,107780.0,0.21439678]
[1750115438092,0.96099068,107790.0,107780.0,0.22239371]
[1750115438309,0.96099068,107790.0,107780.0,0.23167152]
[1750115438757,0.96099068,107790.0,107780.0,0.24094916]
[1750115438984,0.96099068,107790.0,107780.0,0.23167152]
[1750115439408,0.96099068,107790.0,107780.0,0.24094924]
[1750115439635,0.76616691,107790.0,107780.0,0.25022679]
[1750115439879,0.77544369,107790.0,107780.0,0.25022679]
[1750115440105,0.75689031,107790.0,107780.0,0.25022679]
[1750115440318,0.766167,107790.0,107780.0,0.25024746]
[1750115440527,0.76616683,107790.0,107780.0,0.25024746]
[1750115440739,0.78472047,107790.0,107780.0,0.43148746]
[1750115440958,0.347,107790.0,107780.0,0.43148746]
[1750115441171,0.347,107790.0,107780.0,0.45148746]
[1750115442743,0.347,107790.0,107780.0,0.43419231]
[1750115444079,0.3562766,107790.0,107780.0,0.41419231]
[1750115444524,0.76616691,107790.0,107780.0,0.41419231]
[1750115444735,0.77544369,107790.0,107780.0,0.41419231]
[1750115444951,0.76616691,107790.0,107780.0,0.41419231]
[1750115445195,0.347,107790.0,107780.0,0.41419231]
[1750115445419,0.77544369,107790.0,107780.0,0.41419231]
[1750115445624,0.76616691,107790.0,107780.0,0.41419231]
[1750115446473,0.75689031,107790.0,107780.0,0.41419231]
[1750115446687,0.76416683,107790.0,107780.0,0.41419231]
[1750115446900,0.77344352,107790.0,107780.0,0.41419231]
[1750115447106,0.7929975,107790.0,107780.0,0.41411231]
[1750115447311,0.78372038,107790.0,107780.0,0.41411231]
[1750115447546,0.78999742,107790.0,107780.0,0.41311231]
[1750115447760,0.78172038,107790.0,107780.0,0.41411231]
[1750115448001,0.77244352,107790.0,107780.0,0.41411231]
[1750115448217,0.36255321,107790.0,107780.0,0.41411231]
[1750115448429,0.77244352,107790.0,107780.0,0.41411231]
[1750115448874,0.7817203,107790.0,107780.0,0.41411231]
[1750115449766,0.7817203,107790.0,107780.0,0.23295231]
[1750115449980,0.78172038,107790.0,107780.0,0.41411231]
[1750115450204,0.77244343,107790.0,107780.0,0.41411231]
[1750115450412,0.78172029,107790.0,107780.0,0.41411231]
[1750115450632,0.77244343,107790.0,107780.0,0.41411231]
[1750115450840,0.78172021,107790.0,107780.0,0.41411231]
[1750115451051,0.78172012,107790.0,107780.0,0.41411231]
[1750115451274,0.7909969,107790.0,107780.0,0.41411231]
[1750115451496,0.78172012,107790.0,107780.0,0.41411231]
[1750115451741,0.78172012,107790.0,107780.0,0.23295231]
[1750115451986,0.80027394,107790.0,107780.0,0.41411231]
[1750115452413,0.80027385,107790.0,107780.0,0.41411231]
[1750115452871,1.20702217,107790.0,107780.0,0.001]
[1750115453098,1.1170773,107790.0,107780.0,0.001]
[1750115453322,1.1170773,107790.0,107780.0,0.18212]
[1750115453541,1.1170773,107790.0,107780.0,0.001]
[1750115453766,1.1449563,107790.0,107780.0,0.001]
[1750115453981,0.01855846,107760.0,107750.0,0.21345568]
[1750115454195,0.01855846,107760.0,107750.0,0.39500895]
[1750115454196,0.3385039,107760.0,107750.0,0.39500895]
[1750115454617,0.32922454,107760.0,107750.0,0.39500895]
[1750115455043,0.33850381,107760.0,107750.0,0.39500895]
[1750115455247,0.32922454,107760.0,107750.0,0.21592895]
[1750115455454,0.33950381,107760.0,107750.0,0.40200895]
[1750115455894,0.32094544,107760.0,107750.0,0.40200895]
[1750115457132,0.32094544,107760.0,107750.0,0.42640895]
[1750115457585,0.001,107760.0,107750.0,0.42640895]
[1750115457804,0.001,107760.0,107750.0,0.54435071]
[1750115459586,0.32094544,107760.0,107750.0,0.54435071]
[1750115459800,0.32094544,107760.0,107750.0,0.52265071]
[1750115460240,0.001,107760.0,107750.0,0.52265071]
[1750115460461,0.001,107760.0,107750.0,0.54245071]
[1750115462622,1.918e-05,107760.0,107750.0,0.56245071]
[1750115465049,1.918e-05,107760.0,107750.0,0.38137071]
[1750115465270,1.918e-05,107760.0,107750.0,0.61977071]
[1750115465917,0.32194544,107790.0,107780.0,0.25579661]
[1750115465918,0.002,107790.0,107780.0,0.25579661]
[1750115466136,0.002,107790.0,107780.0,0.59039837]
[1750115466567,0.002,107790.0,107780.0,0.35203837]
[1750115466784,0.002,107790.0,107780.0,0.59039837]
[1750115467638,0.003,107790.0,107780.0,0.59439837]
[1750115468549,0.003,107790.0,107780.0,0.79439837]
[1750115468763,0.003,107790.0,107780.0,0.79431837]
[1750115468973,0.003,107790.0,107780.0,0.59431837]
[1750115469196,0.003,107790.0,107780.0,0.60357339]
[1750115469844,0.002,107790.0,107780.0,0.59957339]
[1750115470270,0.003,107790.0,107780.0,0.60257339]
[1750115470500,0.003,107790.0,107780.0,0.60457339]
[1750115470924,0.003,107790.0,107780.0,0.80457339]
[1750115471184,0.003,107790.0,107780.0,1.12451883]
[1750115471408,0.027866,107840.0,107830.0,0.02782053]
[1750115471622,0.027866,107840.0,107830.0,0.59579746]
[1750115471836,0.027866,107840.0,107830.0,0.59343942]
[1750115472068,0.0278127,107860.0,107840.0,0.20399045]
[1750115472281,0.31994544,107860.0,107850.0,0.39401776]
[1750115472504,0.32921508,107870.0,107860.0,0.22249457]
[1750115472717,0.33862668,107870.0,107860.0,0.22249457]
[1750115472921,0.68789649,107870.0,107860.0,0.22249457]
[1750115473167,0.70643671,107870.0,107860.0,0.22249457]
[1750115473387,0.70643663,107870.0,107860.0,0.22249457]
[1750115473610,0.34789675,107870.0,107860.0,0.22249457]
[1750115474050,0.67862685,107870.0,107860.0,0.22249457]
[1750115474275,0.68662685,107870.0,107860.0,0.22349457]
[1750115474496,0.89057629,107870.0,107860.0,0.38563323]
[1750115474721,0.90530648,107870.0,107860.0,0.18168]
[1750115474979,0.91066608,107870.0,107860.0,0.18168]
[1750115475189,0.91066608,107870.0,107860.0,0.001]
[1750115475401,0.91266608,107870.0,107860.0,0.18168]
[1750115476911,0.91266608,107870.0,107860.0,0.001]
[1750115476912,1.02344869,107870.0,107860.0,0.001]
[1750115477140,1.11959791,107870.0,107860.0,0.001]
[1750115477354,1.11959791,107870.0,107830.0,0.20402441]
[1750115477355,0.53322281,107840.0,107830.0,0.20402441]
[1750115477582,0.32921766,107840.0,107830.0,0.40317108]
[1750115477797,0.3384891,107850.0,107840.0,0.2040055]
[1750115478008,0.00927144,107850.0,107840.0,0.21327789]
[1750115478223,1.22008704,107860.0,107850.0,0.21325793]
[1750115478442,1.18105814,107860.0,107850.0,0.39385793]
[1750115478664,1.36648429,107860.0,107850.0,0.3753147]
[1750115479041,0.02781519,107850.0,107840.0,0.2040055]
[1750115479044,0.05151519,107850.0,107840.0,0.21327806]
[1750115479210,0.39000438,107850.0,107840.0,0.23182293]
[1750115479412,0.39000438,107850.0,107840.0,0.41238293]
[1750115479612,0.39000438,107850.0,107840.0,0.40311054]
[1750115479835,0.56617576,107850.0,107840.0,0.38456558]
[1750115480015,0.56617576,107850.0,107840.0,0.39383823]
[1750115480217,0.56717576,107850.0,107840.0,0.39483823]
[1750115480648,0.57313227,107850.0,107840.0,0.19079299]
[1750115480867,0.57313227,107850.0,107840.0,0.39479848]
[1750115481046,0.57313227,107850.0,107840.0,0.40407113]
[1750115481690,0.3876891,107850.0,107840.0,0.41334352]
[1750115481895,0.33948858,107850.0,107840.0,0.41334352]
[1750115482145,0.34876045,107850.0,107840.0,0.41334352]
[1750115482344,0.53420328,107850.0,107840.0,0.40407113]
[1750115482544,0.34876054,107850.0,107840.0,0.41334301]
[1750115482749,0.35803267,107850.0,107840.0,0.41334301]
[1750115483139,0.35803267,107850.0,107840.0,0.40407062]
[1750115483140,0.54347541,107850.0,107840.0,0.40407062]
[1750115483334,0.0288151,107850.0,107840.0,0.41334301]
[1750115483776,0.01954314,107850.0,107840.0,0.23282301]
[1750115483994,0.001,107850.0,107840.0,0.41330301]
[1750115485833,0.01027144,107850.0,107840.0,0.41330301]
[1750115485985,0.3394885,107850.0,107840.0,0.41330301]
[1750115486183,0.3487602,107850.0,107840.0,0.41330301]
[1750115486388,0.33948841,107850.0,107840.0,0.41330301]
[1750115486557,0.34876011,107850.0,107840.0,0.41330301]
[1750115486952,0.01954297,107850.0,107840.0,0.41330301]
[1750115487165,0.33948841,107850.0,107840.0,0.41330301]
[1750115487580,0.33021688,107850.0,107840.0,0.41330301]
[1750115487812,0.32094544,107850.0,107840.0,0.41330301]
[1750115489592,0.001,107850.0,107840.0,0.41330301]
[1750115489803,0.001,107850.0,107840.0,0.50954477]
[1750115490014,0.001,107850.0,107840.0,0.55594477]
[1750115490224,0.001,107850.0,107840.0,0.55574477]
[1750115490454,0.32094544,107850.0,107840.0,0.41310301]
[1750115491094,0.3302168,107850.0,107840.0,0.41310301]
[1750115491518,0.3302168,107850.0,107840.0,0.21427814]
[1750115491519,0.54347464,107850.0,107840.0,0.21427814]
[1750115491735,0.58877464,107850.0,107840.0,0.001]
[1750115491952,0.57023184,107850.0,107840.0,0.38524567]
[1750115492176,0.57023184,107850.0,107840.0,0.3945184]
[1750115492807,0.57023184,107850.0,107840.0,0.40379105]
[1750115493254,0.57023184,107850.0,107840.0,0.20500567]
[1750115493477,0.91023184,107850.0,107840.0,0.001]
[1750115493697,1.33159565,107850.0,107840.0,0.001]
[1750115493918,1.42783741,107850.0,107840.0,0.001]
[1750115497762,1.60799741,107850.0,107840.0,0.001]
[1750115500769,1.60799741,107850.0,107780.0,0.23250662]
[1750115500770,0.02782767,107800.0,107780.0,0.23250662]
[1750115501012,0.53330246,107800.0,107790.0,0.27824552]
[1750115501232,0.53330246,107800.0,107790.0,0.46756247]
[1750115501456,0.52402654,107800.0,107790.0,0.46756247]
[1750115501912,0.52402654,107800.0,107790.0,0.45828552]
[1750115502182,0.52402654,107800.0,107790.0,0.48611611]
[1750115502419,0.84397198,107800.0,107790.0,0.00927729]
[1750115502647,0.86837198,107800.0,107790.0,0.39341758]
[1750115502875,0.34777422,107800.0,107790.0,0.23293122]
[1750115503107,0.53330297,107800.0,107790.0,0.22365453]
[1750115503337,0.53430297,107800.0,107790.0,0.21737758]
[1750115503568,0.55690297,107800.0,107790.0,0.23293139]
[1750115503805,0.55790297,107800.0,107790.0,0.22465453]
[1750115504035,0.55790297,107800.0,107790.0,0.23393139]
[1750115504264,0.55790297,107800.0,107790.0,0.21537758]
[1750115504265,0.54862688,107800.0,107790.0,0.21537758]
[1750115504499,0.22868144,107800.0,107790.0,0.21437758]
[1750115504757,0.54862688,107800.0,107790.0,0.22365444]
[1750115505012,1.21934905,107800.0,107790.0,0.001]
[1750115505225,1.24264905,107800.0,107790.0,0.18654596]
[1750115505428,1.23337262,107800.0,107790.0,0.19582325]
[1750115505657,1.23337262,107800.0,107790.0,0.01027729]
[1750115505924,1.23337262,107800.0,107790.0,0.001]
[1750115506366,0.86502663,107800.0,107790.0,0.20510003]
[1750115506788,0.86502663,107800.0,107790.0,0.21437689]
[1750115507212,0.86502663,107800.0,107790.0,0.20510003]
[1750115507428,0.68877353,107800.0,107790.0,0.21437681]
[1750115507660,0.69804988,107800.0,107790.0,0.2236535]
[1750115507880,0.68877353,107800.0,107790.0,0.2236535]
[1750115508306,0.341,107800.0,107790.0,0.2236535]
[1750115508745,0.341,107800.0,107790.0,0.2472535]
[1750115509174,0.001,107800.0,107790.0,0.2703535]
[1750115509439,0.001,107800.0,107790.0,0.62074398]
[1750115510177,0.001,107800.0,107790.0,0.64074398]
[1750115511585,0.32921792,107840.0,107830.0,0.21329766]
[1750115511586,0.33848996,107840.0,107830.0,0.21329766]
[1750115511813,0.32935945,107840.0,107830.0,0.39313766]
[1750115512037,0.66935945,107840.0,107830.0,0.39313766]
[1750115512462,0.66008723,107840.0,107830.0,0.39313766]
[1750115512681,0.00014179,107840.0,107830.0,0.39313766]
[1750115513313,0.00514179,107840.0,107830.0,0.39413766]
[1750115513532,0.32508723,107840.0,107830.0,0.39413766]
[1750115513747,0.00514179,107840.0,107830.0,0.39413766]
[1750115513980,0.32508723,107840.0,107830.0,0.39413766]
[1750115514422,0.32808723,107840.0,107830.0,0.39413766]
[1750115515060,0.00014179,107840.0,107830.0,0.39313766]
[1750115515522,0.00514179,107840.0,107830.0,0.39413766]
[1750115515973,0.00514179,107840.0,107830.0,0.53597942]
[1750115517397,0.00514179,107840.0,107830.0,0.55597942]
[1750115517869,0.00414179,107840.0,107830.0,0.55597942]
[1750115518113,0.00614179,107840.0,107830.0,0.55597942]
[1750115518348,0.00214179,107840.0,107830.0,0.55497942]
[1750115518587,0.00414179,107840.0,107830.0,0.55597942]
[1750115519074,0.00414179,107840.0,107830.0,0.37613942]
[1750115519319,0.00414179,107840.0,107830.0,0.61277942]
[1750115520499,0.32408723,107840.0,107830.0,0.33053942]
[1750115520738,0.32408723,107840.0,107830.0,0.31053942]
[1750115520977,0.33335945,107840.0,107830.0,0.49009942]
[1750115521715,0.34263184,107840.0,107830.0,0.49009942]
[1750115521939,0.00414179,107840.0,107830.0,0.49009942]
[1750115522186,0.33335953,107840.0,107830.0,0.20502441]
[1750115522424,0.91408319,107840.0,107830.0,0.214298]
[1750115522690,0.91408319,107840.0,107830.0,0.41236459]
[1750115522691,0.00414179,107840.0,107830.0,0.41236459]
[1750115522932,0.00414179,107840.0,107830.0,0.50860635]
[1750115523219,0.00414179,107840.0,107830.0,0.53250635]
[1750115523757,0.00414179,107840.0,107830.0,0.55490635]
[1750115525195,0.00414179,107840.0,107830.0,0.37538635]
[1750115525418,0.00414179,107840.0,107830.0,0.61138635]
[1750115525644,0.00414179,107840.0,107830.0,0.32908635]
[1750115525872,0.00414179,107840.0,107830.0,0.56504635]
[1750115526084,0.00414179,107840.0,107830.0,0.61144635]
[1750115532394,0.00214179,107840.0,107830.0,0.61144635]
[1750115532885,0.00214179,107840.0,107830.0,0.61244635]
[1750115534016,0.00014179,107840.0,107830.0,0.61144635]
[1750115534882,0.00114179,107840.0,107830.0,0.61244635]
[1750115535108,0.00114179,107840.0,107830.0,1.36116136]
[1750115535328,0.00114179,107840.0,107830.0,1.43116136]
[1750115535992,0.00114179,107840.0,107830.0,1.43016136]
[1750115536230,0.00114179,107840.0,107830.0,1.19720136]
[1750115536458,0.00114179,107840.0,107830.0,1.43288136]
[1750115536700,0.00102597,107840.0,107830.0,1.35665264]
[1750115537136,0.00102597,107840.0,107830.0,1.36165264]
[1750115537579,2.597e-05,107840.0,107830.0,1.36065264]
[1750115537792,0.00102597,107840.0,107830.0,1.36765264]
[1750115538066,0.00102597,107840.0,107830.0,1.12497264]
[1750115538290,0.00102597,107840.0,107830.0,1.2196672]
[1750115538506,0.00202597,107840.0,107830.0,1.2226672]
[1750115538936,0.00202597,107840.0,107830.0,1.2276672]
[1750115539159,2.597e-05,107840.0,107830.0,1.53961264]
[1750115539405,2.597e-05,107840.0,107830.0,1.53461264]
[1750115539619,0.00102597,107840.0,107830.0,1.68277818]
[1750115539832,0.00102597,107840.0,107830.0,1.68677818]
[1750115540061,0.00102597,107840.0,107830.0,1.63677818]
[1750115540271,0.00102597,107840.0,107830.0,1.68277818]
[1750115540477,0.00102597,107840.0,107830.0,1.63277818]
[1750115540723,0.00102597,107840.0,107830.0,1.68277818]
[1750115540952,0.00102597,107840.0,107830.0,1.68777818]
[1750115541380,0.00102597,107840.0,107830.0,1.68177818]
[1750115541381,2.597e-05,107840.0,107830.0,1.68177818]
[1750115541594,2.597e-05,107840.0,107830.0,1.63177818]
[1750115541803,2.597e-05,107840.0,107830.0,1.68177818]
[1750115542024,0.00102597,107840.0,107830.0,1.69077818]
[1750115542253,0.00102597,107840.0,107830.0,1.64077818]
[1750115542462,0.00102597,107840.0,107830.0,1.69077818]
[1750115543358,0.00102597,107840.0,107830.0,1.59861264]
[1750115544215,0.00102597,107840.0,107830.0,1.2786672]
[1750115544433,0.00102597,107840.0,107830.0,1.59861264]
[1750115545587,0.00102597,107840.0,107830.0,1.91855808]
[1750115545803,0.00102597,107840.0,107830.0,1.69077818]
[1750115546023,0.00018904,107840.0,107830.0,2.01072362]
[1750115546246,0.0471,107900.0,107890.0,0.21317904]
[1750115546461,0.02317318,107900.0,107890.0,0.4883008]
[1750115546891,0.36541862,107900.0,107890.0,0.3094208]
[1750115547111,0.36541862,107900.0,107890.0,0.4882608]
[1750115548016,0.37141862,107900.0,107890.0,0.4892608]
[1750115548233,0.37141862,107900.0,107890.0,0.51707774]
[1750115549155,0.37241862,107900.0,107890.0,0.51707774]
[1750115551330,0.37241862,107900.0,107890.0,0.51695774]
[1750115552700,0.38168568,107900.0,107890.0,0.22345954]
[1750115552920,0.39095291,107900.0,107890.0,0.42071598]
[1750115553339,0.4002204,107900.0,107890.0,0.42071598]
[1750115553837,0.07100747,107900.0,107890.0,0.42071598]
[1750115554068,0.4002204,107900.0,107890.0,0.42071598]
[1750115554539,0.39095291,107900.0,107890.0,0.42071598]
[1750115554969,0.37241862,107900.0,107890.0,0.42071598]
[1750115555196,0.37241862,107900.0,107890.0,0.42059598]
[1750115556057,0.38168577,107900.0,107890.0,0.42059598]
[1750115556296,0.39095309,107900.0,107890.0,0.42059598]
[1750115556517,0.38168577,107900.0,107890.0,0.42059598]
[1750115556750,0.37241862,107900.0,107890.0,0.42059598]
[1750115556969,0.37241862,107900.0,107890.0,0.51683774]
[1750115558072,0.37241862,107900.0,107890.0,0.51675774]
[1750115558281,0.37241862,107900.0,107890.0,0.33823774]
[1750115558498,0.39095334,107900.0,107890.0,0.24199598]
[1750115558749,0.38168585,107900.0,107890.0,0.42051598]
[1750115558962,0.37241862,107900.0,107890.0,0.42051598]
[1750115562364,0.37241862,107900.0,107890.0,0.42039598]
[1750115563049,0.05247318,107900.0,107890.0,0.42039598]
[1750115563248,0.30772958,107900.0,107890.0,0.42039598]
[1750115563458,0.05247318,107900.0,107890.0,0.51663774]
[1750115563884,0.26272958,107900.0,107890.0,0.51663774]
[1750115564097,0.26272958,107900.0,107890.0,0.33823774]
[1750115564323,0.26272958,107900.0,107890.0,0.51659774]
[1750115564966,0.00747318,107900.0,107890.0,0.51659774]
[1750115565214,0.26272958,107900.0,107890.0,0.51659774]
[1750115565435,0.00747318,107900.0,107890.0,0.51659774]
[1750115566302,0.00747318,107900.0,107890.0,0.55829774]
[1750115567607,0.00647318,107900.0,107890.0,0.55829774]
[1750115567869,0.00747318,107900.0,107890.0,0.55829774]
[1750115568283,0.00147318,107900.0,107890.0,0.55729774]
[1750115568489,0.00647318,107900.0,107890.0,0.55829774]
[1750115568912,0.00547318,107900.0,107890.0,0.55829774]
[1750115569361,0.00047318,107900.0,107890.0,0.55729774]
[1750115569582,0.00347318,107900.0,107890.0,0.55729774]
[1750115570223,0.00347318,107900.0,107890.0,0.57135774]
[1750115570901,0.00347318,107900.0,107890.0,0.81505774]
[1750115571358,0.00347318,107900.0,107890.0,1.07031414]
[1750115572053,0.00347318,107900.0,107890.0,0.81505774]
[1750115572306,0.00347318,107900.0,107890.0,0.58093774]
[1750115572522,0.00347318,107900.0,107890.0,0.81501774]
[1750115573200,0.00347318,107900.0,107890.0,1.07027414]
[1750115574971,0.00347318,107900.0,107890.0,1.41027414]
[1750115575401,0.00347318,107900.0,107890.0,1.15501774]
[1750115575613,0.00347318,107900.0,107890.0,1.41027414]
[1750115575836,0.00047318,107900.0,107890.0,1.41027414]
[1750115576251,0.00147318,107900.0,107890.0,1.41027414]
[1750115576674,0.00147318,107900.0,107890.0,1.41127414]
[1750115579334,0.00147318,107900.0,107890.0,1.42581499]
[1750115580632,0.0418,107950.0,107940.0,0.2130803]
[1750115580860,0.2970564,107950.0,107940.0,0.3909203]
[1750115581080,0.29719834,107950.0,107940.0,0.3909203]
[1750115581720,0.30646111,107950.0,107940.0,0.3909203]
[1750115582002,0.04194194,107950.0,107940.0,0.3909203]
[1750115582238,0.29719834,107950.0,107940.0,0.3909203]
[1750115582484,0.30419834,107950.0,107940.0,0.3919203]
[1750115582718,0.04894194,107950.0,107940.0,0.48816206]
[1750115582980,0.30419834,107950.0,107940.0,0.48816206]
[1750115583190,0.30419834,107950.0,107940.0,0.49770208]
[1750115583824,0.04894194,107950.0,107940.0,0.49770208]
[1750115584040,0.60397203,107970.0,107960.0,0.21304081]
[1750115584263,0.6168564,107970.0,107960.0,0.39080081]
[1750115584500,0.2987564,107970.0,107960.0,0.39080081]
[1750115584719,0.0435,107970.0,107960.0,0.48704257]
[1750115584936,0.0435,107970.0,107960.0,0.54248257]
[1750115585146,0.0435,107970.0,107960.0,0.5702277]
[1750115585388,0.2987564,107970.0,107960.0,0.5702277]
[1750115585622,0.071324,107990.0,107980.0,0.21300136]
[1750115585871,0.33598167,107990.0,107980.0,0.19448036]
[1750115586091,0.00926037,107980.0,107970.0,0.21302006]
[1750115586311,0.06222065,107980.0,107970.0,0.381439]
[1750115586536,0.2989564,107980.0,107970.0,0.381439]
[1750115586751,0.0437,107980.0,107970.0,0.30926301]
[1750115586994,0.2989564,107980.0,107970.0,0.39996248]
[1750115587469,0.2989564,107980.0,107970.0,0.22228248]
[1750115587695,0.06222082,107980.0,107970.0,0.3813996]
[1750115587935,0.2989564,107980.0,107970.0,0.39066108]
[1750115588171,0.2989564,107980.0,107970.0,0.48690284]
[1750115588425,0.0437,107980.0,107970.0,0.48690284]
[1750115588645,0.2989564,107980.0,107970.0,0.48690284]
[1750115588861,0.2552564,107980.0,107970.0,0.48690284]
[1750115589095,0.2552564,107980.0,107970.0,0.47690284]
[1750115589337,0.002,107980.0,107970.0,0.47690284]
[1750115589841,0.2572564,107980.0,107970.0,0.47690284]
[1750115590050,0.002,107980.0,107970.0,0.47690284]
[1750115590497,0.32692216,107990.0,107980.0,0.21300136]
[1750115591427,0.3361815,107990.0,107980.0,0.21300136]
[1750115591858,0.32692216,107990.0,107980.0,0.21300136]
[1750115592555,0.28722216,107990.0,107980.0,0.30924312]
[1750115593226,0.30179816,107990.0,107980.0,0.30924312]
[1750115593456,0.30179816,107990.0,107980.0,0.48672312]
[1750115593676,0.32031727,107990.0,107980.0,0.21300136]
[1750115593890,0.06106087,107990.0,107980.0,0.39044136]
[1750115594103,0.32757712,107990.0,107980.0,0.39044136]
[1750115594786,0.33157712,107990.0,107980.0,0.20374099]
[1750115594994,0.34083723,107990.0,107980.0,0.39970198]
[1750115595866,0.33157721,107990.0,107980.0,0.39966198]
[1750115596080,0.33157721,107990.0,107980.0,0.40892235]
[1750115596914,0.52603965,107990.0,107980.0,0.3811009]
[1750115597128,0.08558067,107990.0,107980.0,0.39962215]
[1750115597405,0.34083707,107990.0,107980.0,0.39962215]
[1750115597822,0.31305759,107990.0,107980.0,0.39962215]
[1750115598047,0.30379816,107990.0,107980.0,0.40888252]
[1750115598277,0.30379816,107990.0,107980.0,0.50512428]
[1750115598278,0.00614176,107990.0,107980.0,0.50512428]
[1750115598748,0.26139816,107990.0,107980.0,0.51422923]
[1750115598970,0.26139816,107990.0,107980.0,0.51418923]
[1750115599406,0.26139816,107990.0,107980.0,0.50508428]
[1750115599886,0.00614176,107990.0,107980.0,0.50508428]
[1750115600797,0.26139816,107990.0,107980.0,0.50508428]
[1750115601001,0.00614176,107990.0,107980.0,0.50508428]
[1750115601431,0.26139816,107990.0,107980.0,0.50508428]
[1750115602283,0.00614176,107990.0,107980.0,0.50508428]
[1750115602516,0.25539816,107990.0,107980.0,0.50508428]
[1750115602730,0.00114176,107990.0,107980.0,0.50508428]
[1750115602944,0.25639816,107990.0,107980.0,0.50508428]
[1750115603147,0.00114176,107990.0,107980.0,0.50508428]
[1750115603356,0.25639816,107990.0,107980.0,0.50508428]
[1750115605508,0.25639816,107990.0,107980.0,0.56032428]
[1750115606387,0.25639816,107990.0,107980.0,0.32776428]
[1750115606594,0.25639816,107990.0,107980.0,0.56028428]
[1750115609228,0.00114176,107990.0,107980.0,0.56028428]
[1750115609480,0.29789816,107990.0,107980.0,0.23152252]
[1750115609698,0.30715767,107990.0,107980.0,0.39004136]
[1750115609924,0.31641727,107990.0,107980.0,0.21300136]
[1750115610194,0.32567704,107990.0,107980.0,0.21300136]
[1750115610422,0.04264176,107990.0,107980.0,0.39000136]
[1750115610667,0.31541719,107990.0,107980.0,0.39000136]
[1750115610871,0.32141719,107990.0,107980.0,0.39000136]
[1750115611098,0.33067696,107990.0,107980.0,0.21300136]
[1750115611313,0.3399369,107990.0,107980.0,0.39000136]
[1750115611779,0.33067696,107990.0,107980.0,0.39000136]
[1750115612264,0.33267696,107990.0,107980.0,0.39000136]
[1750115612520,0.33267704,107990.0,107980.0,0.39000136]
[1750115612781,0.34193698,107990.0,107980.0,0.39000136]
[1750115613226,0.33267704,107990.0,107980.0,0.39000136]
[1750115613700,0.32341719,107990.0,107980.0,0.39000136]
[1750115613911,0.34193672,107990.0,107980.0,0.39000136]
[1750115614343,0.13306178,107990.0,107980.0,0.39918198]